Body Name,Document Number,Service,Type of Expenditure,Invoice Date,Supplier Name,Cost to the Council (Amount Exc VAT),Month
EREWASH BOROUGH COUNCIL,21065,Non Domestic Rates Retention  ,NNDR Pooling Levy             ,22-Feb-2023,DERBY CITY COUNCIL                      ,"8,173.00",Feb-23
EREWASH BOROUGH COUNCIL,21916,Non Domestic Rates Retention  ,NNDR Tariff                   ,20-Feb-2023,DERBY CITY COUNCIL                      ,"520,564.97",Feb-23
EREWASH BOROUGH COUNCIL,20320,Arts Development              ,Special Events                ,20-Jan-2023,AVAGO CRAFTS                            ,500.00,Feb-23
EREWASH BOROUGH COUNCIL,20320,Arts Development              ,Special Events                ,20-Jan-2023,AVAGO CRAFTS                            ,375.00,Feb-23
EREWASH BOROUGH COUNCIL,19754,Erewash Museum                ,PPM Mechanical and Equipment  ,07-Jan-2023,MDB PLUMBING (NOTTM) LTD                ,641.00,Feb-23
EREWASH BOROUGH COUNCIL,20531,Erewash Museum                ,Electricity                   ,20-Jan-2023,TOTALENERGIES GAS & POWER LTD           ,660.42,Feb-23
EREWASH BOROUGH COUNCIL,20104,Erewash Museum                ,Gas                           ,11-Jan-2023,TOTALENERGIES GAS & POWER LTD           ,602.23,Feb-23
EREWASH BOROUGH COUNCIL,20328,Ilkeston Charter Fair         ,Contracted Services           ,09-Nov-2022,INTER-COUNTY PARAMEDICS LTD             ,"1,170.00",Feb-23
EREWASH BOROUGH COUNCIL,20302,Reprographics                 ,Stationery                    ,24-Jan-2023,PHOENIX NETWORK COMMUNICATIONS LTD      ,395.00,Feb-23
EREWASH BOROUGH COUNCIL,20354,"Police, Crime Commissioner Com",Project Grants                ,25-Jan-2023,GROUNDWORK GREATER NOTTINGHAM           ,"1,880.00",Feb-23
EREWASH BOROUGH COUNCIL,19942,"Police, Crime Commissioner Com",Project Grants                ,11-Jan-2023,JNE SECURITY LIMITED                    ,"1,020.00",Feb-23
EREWASH BOROUGH COUNCIL,19640,"Police, Crime Commissioner Com",Project Grants                ,05-Jan-2023,SOUTH DERBYSHIRE CVS.                   ,"4,000.00",Feb-23
EREWASH BOROUGH COUNCIL,20349,"Police, Crime Commissioner Com",Project Grants                ,25-Jan-2023,POLICE AND CRIME COMMISSIONER FOR DERBYS,"2,000.00",Feb-23
EREWASH BOROUGH COUNCIL,19983,Household Waste Collection    ,Agency Staff                  ,16-Jan-2023,EXTRA PERSONNEL LTD                     ,825.13,Feb-23
EREWASH BOROUGH COUNCIL,19623,Household Waste Collection    ,Agency Staff                  ,23-Dec-2022,EXTRA PERSONNEL LTD                     ,"3,131.81",Feb-23
EREWASH BOROUGH COUNCIL,19718,Household Waste Collection    ,Agency Staff                  ,06-Jan-2023,EXTRA PERSONNEL LTD                     ,"3,440.95",Feb-23
EREWASH BOROUGH COUNCIL,20339,Household Waste Collection    ,Agency Staff                  ,23-Jan-2023,EXTRA PERSONNEL LTD                     ,"3,451.96",Feb-23
EREWASH BOROUGH COUNCIL,20339,Household Waste Collection    ,Agency Staff                  ,23-Jan-2023,EXTRA PERSONNEL LTD                     ,"2,301.32",Feb-23
EREWASH BOROUGH COUNCIL,19658,Household Waste Collection    ,Agency Staff                  ,03-Jan-2023,EXTRA PERSONNEL LTD                     ,"4,494.65",Feb-23
EREWASH BOROUGH COUNCIL,20487,Household Waste Collection    ,Agency Staff                  ,13-Dec-2022,EXTRA PERSONNEL LTD                     ,"5,536.48",Feb-23
EREWASH BOROUGH COUNCIL,20059,Household Waste Collection    ,Agency Staff                  ,18-Jan-2023,EXTRA PERSONNEL LTD                     ,"10,464.49",Feb-23
EREWASH BOROUGH COUNCIL,19979,Household Waste Collection    ,Agency Staff                  ,13-Jan-2023,EXTRA PERSONNEL LTD                     ,"3,699.94",Feb-23
EREWASH BOROUGH COUNCIL,19979,Household Waste Collection    ,Agency Staff                  ,13-Jan-2023,EXTRA PERSONNEL LTD                     ,"2,466.63",Feb-23
EREWASH BOROUGH COUNCIL,20488,Household Waste Collection    ,Agency Staff                  ,05-Dec-2022,EXTRA PERSONNEL LTD                     ,"5,623.46",Feb-23
EREWASH BOROUGH COUNCIL,20488,Household Waste Collection    ,Agency Staff                  ,05-Dec-2022,EXTRA PERSONNEL LTD                     ,"3,748.98",Feb-23
EREWASH BOROUGH COUNCIL,20511,Household Waste Collection    ,Agency Staff                  ,27-Jan-2023,EXTRA PERSONNEL LTD                     ,"3,962.20",Feb-23
EREWASH BOROUGH COUNCIL,19662,Household Waste Collection    ,Agency Staff                  ,04-Jan-2023,EXTRA PERSONNEL LTD                     ,"4,663.34",Feb-23
EREWASH BOROUGH COUNCIL,19869,Household Waste Collection    ,Agency Staff                  ,07-Jan-2023,WORKCHAIN LTD                           ,980.10,Feb-23
EREWASH BOROUGH COUNCIL,20800,Household Waste Collection    ,Training                      ,13-Feb-2023,ROAD HAULAGE ASSOCIATION                ,675.00,Feb-23
EREWASH BOROUGH COUNCIL,20801,Household Waste Collection    ,Training                      ,13-Feb-2023,ROAD HAULAGE ASSOCIATION                ,"1,350.00",Feb-23
EREWASH BOROUGH COUNCIL,20547,Household Waste Collection    ,Training                      ,30-Jan-2023,THREESIXY LOGISTICS TRAINING & REC LTD  ,285.00,Feb-23
EREWASH BOROUGH COUNCIL,20546,Household Waste Collection    ,Training                      ,25-Jan-2023,THREESIXY LOGISTICS TRAINING & REC LTD  ,"1,160.00",Feb-23
EREWASH BOROUGH COUNCIL,19765,Household Waste Collection    ,Hire Charges                  ,31-Dec-2022,EUROMUNICIPAL LTD                       ,"1,520.00",Feb-23
EREWASH BOROUGH COUNCIL,20310,Household Waste Collection    ,Bins                          ,20-Jan-2023,PROTECTIVE WEAR SUPPLIES LTD            ,762.25,Feb-23
EREWASH BOROUGH COUNCIL,19927,Household Waste Collection    ,Bins                          ,10-Jan-2023,MARWOOD GROUP LIMITED                   ,"1,475.50",Feb-23
EREWASH BOROUGH COUNCIL,20123,Household Waste Collection    ,Repairs and Maintenance       ,19-Jan-2023,DENNIS EAGLE LTD                        ,597.01,Feb-23
EREWASH BOROUGH COUNCIL,20541,Household Waste Collection    ,Repairs and Maintenance       ,30-Jan-2023,DENNIS EAGLE LTD                        ,267.62,Feb-23
EREWASH BOROUGH COUNCIL,20541,Household Waste Collection    ,Repairs and Maintenance       ,30-Jan-2023,DENNIS EAGLE LTD                        ,254.43,Feb-23
EREWASH BOROUGH COUNCIL,20813,Household Waste Collection    ,Repairs and Maintenance       ,30-Nov-2022,T P HOPWELL (BIRMINGHAM) LTD            ,356.31,Feb-23
EREWASH BOROUGH COUNCIL,19757,Household Waste Collection    ,Repairs and Maintenance       ,09-Jan-2023,TERBERG MATEC UK                        ,658.04,Feb-23
EREWASH BOROUGH COUNCIL,20085,Household Waste Collection    ,Repairs and Maintenance       ,17-Jan-2023,AQUA CLEAN                              ,67.04,Feb-23
EREWASH BOROUGH COUNCIL,20161,Household Waste Collection    ,Repairs and Maintenance       ,11-Jan-2023,LEDAM MAINTENANCE SUPPLIES              ,173.88,Feb-23
EREWASH BOROUGH COUNCIL,20337,Trade Waste                   ,Agency Staff                  ,23-Jan-2023,EXTRA PERSONNEL LTD                     ,478.80,Feb-23
EREWASH BOROUGH COUNCIL,20061,Trade Waste                   ,Agency Staff                  ,18-Jan-2023,EXTRA PERSONNEL LTD                     ,"1,242.36",Feb-23
EREWASH BOROUGH COUNCIL,19977,Trade Waste                   ,Agency Staff                  ,13-Jan-2023,EXTRA PERSONNEL LTD                     ,470.82,Feb-23
EREWASH BOROUGH COUNCIL,20480,Trade Waste                   ,Agency Staff                  ,05-Dec-2022,EXTRA PERSONNEL LTD                     ,546.49,Feb-23
EREWASH BOROUGH COUNCIL,20510,Trade Waste                   ,Agency Staff                  ,27-Jan-2023,EXTRA PERSONNEL LTD                     ,590.52,Feb-23
EREWASH BOROUGH COUNCIL,19862,Trade Waste                   ,Bins                          ,10-Jan-2023,ESE WORLD LIMITED                       ,"1,286.50",Feb-23
EREWASH BOROUGH COUNCIL,19860,Trade Waste                   ,Bins                          ,10-Jan-2023,ESE WORLD LIMITED                       ,"1,427.30",Feb-23
EREWASH BOROUGH COUNCIL,19861,Trade Waste                   ,Bins                          ,10-Jan-2023,ESE WORLD LIMITED                       ,"1,427.30",Feb-23
EREWASH BOROUGH COUNCIL,19863,Trade Waste                   ,Bins                          ,10-Jan-2023,ESE WORLD LIMITED                       ,"1,286.50",Feb-23
EREWASH BOROUGH COUNCIL,19863,Trade Waste                   ,Bins                          ,10-Jan-2023,ESE WORLD LIMITED                       ,732.48,Feb-23
EREWASH BOROUGH COUNCIL,20606,Trade Waste                   ,Waste Disposal                ,26-Jan-2023,DERBYSHIRE COUNTY COUNCIL...            ,"105,360.69",Feb-23
EREWASH BOROUGH COUNCIL,20541,Trade Waste                   ,Repairs and Maintenance       ,30-Jan-2023,DENNIS EAGLE LTD                        ,313.36,Feb-23
EREWASH BOROUGH COUNCIL,20364,Trade Waste                   ,Repairs and Maintenance       ,20-Jan-2023,PARTIC MOTOR SPARES LTD                 ,399.98,Feb-23
EREWASH BOROUGH COUNCIL,20085,Trade Waste                   ,Repairs and Maintenance       ,17-Jan-2023,AQUA CLEAN                              ,67.04,Feb-23
EREWASH BOROUGH COUNCIL,20161,Trade Waste                   ,Repairs and Maintenance       ,11-Jan-2023,LEDAM MAINTENANCE SUPPLIES              ,173.86,Feb-23
EREWASH BOROUGH COUNCIL,20131,Kerbside Recycling Collection ,Waste Disposal                ,19-Jan-2022,CANOPY TREE SERVICES                    ,"2,400.00",Feb-23
EREWASH BOROUGH COUNCIL,19983,Kerbside Recycling Collection ,Agency Staff                  ,16-Jan-2023,EXTRA PERSONNEL LTD                     ,550.09,Feb-23
EREWASH BOROUGH COUNCIL,19623,Kerbside Recycling Collection ,Agency Staff                  ,23-Dec-2022,EXTRA PERSONNEL LTD                     ,"2,087.88",Feb-23
EREWASH BOROUGH COUNCIL,19718,Kerbside Recycling Collection ,Agency Staff                  ,06-Jan-2023,EXTRA PERSONNEL LTD                     ,"2,293.96",Feb-23
EREWASH BOROUGH COUNCIL,19658,Kerbside Recycling Collection ,Agency Staff                  ,03-Jan-2023,EXTRA PERSONNEL LTD                     ,"2,996.43",Feb-23
EREWASH BOROUGH COUNCIL,20487,Kerbside Recycling Collection ,Agency Staff                  ,13-Dec-2022,EXTRA PERSONNEL LTD                     ,"3,690.98",Feb-23
EREWASH BOROUGH COUNCIL,20059,Kerbside Recycling Collection ,Agency Staff                  ,18-Jan-2023,EXTRA PERSONNEL LTD                     ,"6,976.32",Feb-23
EREWASH BOROUGH COUNCIL,20511,Kerbside Recycling Collection ,Agency Staff                  ,27-Jan-2023,EXTRA PERSONNEL LTD                     ,"2,641.47",Feb-23
EREWASH BOROUGH COUNCIL,19662,Kerbside Recycling Collection ,Agency Staff                  ,04-Jan-2023,EXTRA PERSONNEL LTD                     ,"3,108.89",Feb-23
EREWASH BOROUGH COUNCIL,19869,Kerbside Recycling Collection ,Agency Staff                  ,07-Jan-2023,WORKCHAIN LTD                           ,653.40,Feb-23
EREWASH BOROUGH COUNCIL,20368,Kerbside Recycling Collection ,Repairs and Maintenance       ,18-Jan-2023,DENNIS EAGLE LTD                        ,"1,000.00",Feb-23
EREWASH BOROUGH COUNCIL,20257,Kerbside Recycling Collection ,Repairs and Maintenance       ,18-Jan-2023,DENNIS EAGLE LTD                        ,"1,651.46",Feb-23
EREWASH BOROUGH COUNCIL,20257,Kerbside Recycling Collection ,Repairs and Maintenance       ,18-Jan-2023,DENNIS EAGLE LTD                        ,"3,251.87",Feb-23
EREWASH BOROUGH COUNCIL,20257,Kerbside Recycling Collection ,Repairs and Maintenance       ,18-Jan-2023,DENNIS EAGLE LTD                        ,501.22,Feb-23
EREWASH BOROUGH COUNCIL,19708,Kerbside Recycling Collection ,Repairs and Maintenance       ,04-Jan-2023,DENNIS EAGLE LTD                        ,324.31,Feb-23
EREWASH BOROUGH COUNCIL,19708,Kerbside Recycling Collection ,Repairs and Maintenance       ,04-Jan-2023,DENNIS EAGLE LTD                        ,284.63,Feb-23
EREWASH BOROUGH COUNCIL,19748,Kerbside Recycling Collection ,Repairs and Maintenance       ,06-Jan-2023,DENNIS EAGLE LTD                        ,274.58,Feb-23
EREWASH BOROUGH COUNCIL,20255,Kerbside Recycling Collection ,Repairs and Maintenance       ,17-Jan-2023,PB AUTO ELECTRICS                       ,295.38,Feb-23
EREWASH BOROUGH COUNCIL,20085,Kerbside Recycling Collection ,Repairs and Maintenance       ,17-Jan-2023,AQUA CLEAN                              ,67.04,Feb-23
EREWASH BOROUGH COUNCIL,20161,Kerbside Recycling Collection ,Repairs and Maintenance       ,11-Jan-2023,LEDAM MAINTENANCE SUPPLIES              ,173.86,Feb-23
EREWASH BOROUGH COUNCIL,19613,Infec Disease & Food Poisoning,Contracted Services           ,04-Jan-2023,OYSTER PARTNERSHIP LTD                  ,305.52,Feb-23
EREWASH BOROUGH COUNCIL,19614,Infec Disease & Food Poisoning,Contracted Services           ,04-Jan-2023,OYSTER PARTNERSHIP LTD                  ,587.82,Feb-23
EREWASH BOROUGH COUNCIL,19856,Infec Disease & Food Poisoning,Contracted Services           ,11-Jan-2023,OYSTER PARTNERSHIP LTD                  ,302.76,Feb-23
EREWASH BOROUGH COUNCIL,19903,Infec Disease & Food Poisoning,Contracted Services           ,11-Jan-2023,BUCKINGHAM FUTURES LIMITED              ,"2,021.25",Feb-23
EREWASH BOROUGH COUNCIL,20069,Infec Disease & Food Poisoning,Contracted Services           ,18-Jan-2023,BUCKINGHAM FUTURES LIMITED              ,"2,463.12",Feb-23
EREWASH BOROUGH COUNCIL,20269,Infec Disease & Food Poisoning,Contracted Services           ,25-Jan-2023,BUCKINGHAM FUTURES LIMITED              ,"2,200.62",Feb-23
EREWASH BOROUGH COUNCIL,19692,Infec Disease & Food Poisoning,Work In Default               ,04-Jan-2023,AW LYMN LTD                             ,"1,449.00",Feb-23
EREWASH BOROUGH COUNCIL,20267,Infec Disease & Food Poisoning,Miscellaneous Government Grant,25-Jan-2023,CHARTERED INSTITUTE OF ENVIORNMENTAL HTH,"1,600.00",Feb-23
EREWASH BOROUGH COUNCIL,18878,Infec Disease & Food Poisoning,Fees Costs and Expenses       ,07-Dec-2022,OSBORNE RICHARDSON                      ,300.00,Feb-23
EREWASH BOROUGH COUNCIL,19605,Corporate Health and Safety   ,Water Testing                 ,30-Dec-2022,STERILIZING SERVICES LTD                ,849.00,Feb-23
EREWASH BOROUGH COUNCIL,19647,Urban Renewal                 ,Agency Staff                  ,04-Jan-2023,BUCKINGHAM FUTURES LIMITED              ,785.97,Feb-23
EREWASH BOROUGH COUNCIL,19902,Urban Renewal                 ,Agency Staff                  ,11-Jan-2023,BUCKINGHAM FUTURES LIMITED              ,"1,342.67",Feb-23
EREWASH BOROUGH COUNCIL,20068,Urban Renewal                 ,Agency Staff                  ,18-Jan-2023,BUCKINGHAM FUTURES LIMITED              ,"1,374.33",Feb-23
EREWASH BOROUGH COUNCIL,20516,Urban Renewal                 ,Agency Staff                  ,01-Feb-2023,BUCKINGHAM FUTURES LIMITED              ,"1,406.00",Feb-23
EREWASH BOROUGH COUNCIL,20268,Urban Renewal                 ,Agency Staff                  ,25-Jan-2023,BUCKINGHAM FUTURES LIMITED              ,"1,434.50",Feb-23
EREWASH BOROUGH COUNCIL,21062,Homelessness                  ,Spend to Save                 ,21-Feb-2023,REDACTED PERSONAL DATA,750.00,Feb-23
EREWASH BOROUGH COUNCIL,20391,Homelessness                  ,Spend to Save                 ,01-Feb-2023,NOTTINGHAM COMMUNITY HOUSING ASSOCIATION,571.06,Feb-23
EREWASH BOROUGH COUNCIL,21069,Homelessness                  ,Spend to Save                 ,22-Feb-2023,CONNELLS RESIDENTIAL LETTINGS           ,807.00,Feb-23
EREWASH BOROUGH COUNCIL,20042,Homelessness                  ,Temporary Accommodation       ,14-Dec-2022,MR K. SINGH - ADFAN LTD                 ,350.00,Feb-23
EREWASH BOROUGH COUNCIL,20114,Homelessness                  ,Temporary Accommodation       ,05-Jul-2022,MR K. SINGH - ADFAN LTD                 ,525.00,Feb-23
EREWASH BOROUGH COUNCIL,20764,Homelessness                  ,Temporary Accommodation       ,14-Nov-2022,HUMBLE ROOTS LIMITED                    ,"1,656.06",Feb-23
EREWASH BOROUGH COUNCIL,20764,Homelessness                  ,Temporary Accommodation       ,14-Nov-2022,HUMBLE ROOTS LIMITED                    ,"1,035.75",Feb-23
EREWASH BOROUGH COUNCIL,19509,Homelessness                  ,Temporary Accommodation       ,03-Jan-2023,VICTORIA PARK HOTEL                     ,546.00,Feb-23
EREWASH BOROUGH COUNCIL,19509,Homelessness                  ,Temporary Accommodation       ,03-Jan-2023,VICTORIA PARK HOTEL                     ,884.00,Feb-23
EREWASH BOROUGH COUNCIL,19479,Homelessness                  ,Temporary Accommodation       ,29-Dec-2022,A38 WOODLANDS                           ,270.00,Feb-23
EREWASH BOROUGH COUNCIL,20293,Homelessness                  ,Temporary Accommodation       ,30-Jan-2023,A38 WOODLANDS                           ,288.00,Feb-23
EREWASH BOROUGH COUNCIL,19940,Homelessness                  ,Temporary Accommodation       ,16-Jan-2023,A38 WOODLANDS                           ,336.00,Feb-23
EREWASH BOROUGH COUNCIL,20147,Homelessness                  ,Temporary Accommodation       ,23-Jan-2023,A38 WOODLANDS                           ,336.00,Feb-23
EREWASH BOROUGH COUNCIL,20037,Homelessness                  ,Temporary Accommodation       ,16-Jan-2023,A38 WOODLANDS                           ,392.00,Feb-23
EREWASH BOROUGH COUNCIL,20117,Homelessness                  ,Temporary Accommodation       ,18-Jan-2023,ASCOT HOTEL                             ,280.00,Feb-23
EREWASH BOROUGH COUNCIL,20142,Homelessness                  ,Temporary Accommodation       ,19-Jan-2023,ASCOT HOTEL                             ,280.00,Feb-23
EREWASH BOROUGH COUNCIL,19652,Homelessness                  ,Temporary Accommodation       ,03-Jan-2023,ASCOT HOTEL                             ,280.00,Feb-23
EREWASH BOROUGH COUNCIL,19668,Homelessness                  ,Temporary Accommodation       ,05-Jan-2023,ASCOT HOTEL                             ,280.00,Feb-23
EREWASH BOROUGH COUNCIL,19653,Homelessness                  ,Temporary Accommodation       ,10-Jan-2023,ASCOT HOTEL                             ,280.00,Feb-23
EREWASH BOROUGH COUNCIL,20118,Homelessness                  ,Temporary Accommodation       ,12-Jan-2023,ASCOT HOTEL                             ,280.00,Feb-23
EREWASH BOROUGH COUNCIL,20532,Homelessness                  ,Temporary Accommodation       ,26-Jan-2023,ASCOT HOTEL                             ,280.00,Feb-23
EREWASH BOROUGH COUNCIL,20523,Homelessness                  ,Leased Properties             ,22-Jan-2021,FUTURES HOMESCAPE LTD                   ,"1,141.75",Feb-23
EREWASH BOROUGH COUNCIL,20524,Homelessness                  ,Leased Properties             ,22-Apr-2021,FUTURES HOMESCAPE LTD                   ,"1,141.75",Feb-23
EREWASH BOROUGH COUNCIL,20796,Homelessness                  ,Leased Properties             ,22-Apr-2020,FUTURES HOMESCAPE LTD                   ,"1,141.75",Feb-23
EREWASH BOROUGH COUNCIL,19665,Homelessness                  ,Leased Properties             ,05-Jan-2023,ASCOT HOTEL                             ,280.00,Feb-23
EREWASH BOROUGH COUNCIL,20392,Homelessness                  ,Fees Costs and Expenses       ,12-Jan-2023,DERBYSHIRE LAW CENTRE                   ,"43,366.00",Feb-23
EREWASH BOROUGH COUNCIL,19987,Homelessness                  ,Computer Software             ,31-Dec-2022,LOCATA (HOUSING SERVICES) LTD           ,"3,750.00",Feb-23
EREWASH BOROUGH COUNCIL,21044,Homelessness                  ,Homelessness Prevention Grant ,20-Oct-2022,"DEPT FOR LEVELLING UP,HOUSING&COMMUNITIE","84,603.00",Feb-23
EREWASH BOROUGH COUNCIL,20537,Homelessness                  ,Homelessness Prevention Grant ,25-Jan-2023,NORTH EAST DERBYSHIRE DISTRICT COUNCIL. ,"2,597.22",Feb-23
EREWASH BOROUGH COUNCIL,19778,Homelessness Prevention       ,Contribution to Shared Service,11-Jan-2023,POLICE AND CRIME COMMISSIONER FOR DERBYS,"3,419.50",Feb-23
EREWASH BOROUGH COUNCIL,20569,Director of Resources         ,Agency Staff                  ,02-Feb-2023,SOLACE IN BUSINESS                      ,"13,860.00",Feb-23
EREWASH BOROUGH COUNCIL,21602,Treasury and Bank Charges     ,Bank Charges                  ,13-Feb-2023,LLOYDS BANK PLC                         ,655.91,Feb-23
EREWASH BOROUGH COUNCIL,20976,Treasury and Bank Charges     ,Credit/Debit Card Charges     ,09-Feb-2023,PAY 360 LIMITED (CAPITA)                ,"5,098.44",Feb-23
EREWASH BOROUGH COUNCIL,21556,Treasury and Bank Charges     ,Allpay/Post Office Charges    ,28-Feb-2023,ALLPAY LIMITED                          ,287.28,Feb-23
EREWASH BOROUGH COUNCIL,20254,Accountancy                   ,Agency Staff                  ,22-Jan-2023,MACILDOWIE RECRUITMENT EXPERTISE        ,"1,230.02",Feb-23
EREWASH BOROUGH COUNCIL,20373,Accountancy                   ,Agency Staff                  ,29-Jan-2023,MACILDOWIE RECRUITMENT EXPERTISE        ,"1,238.39",Feb-23
EREWASH BOROUGH COUNCIL,20825,Accountancy                   ,Agency Staff                  ,12-Feb-2023,MACILDOWIE RECRUITMENT EXPERTISE        ,"1,221.66",Feb-23
EREWASH BOROUGH COUNCIL,20618,Accountancy                   ,Agency Staff                  ,05-Feb-2023,MACILDOWIE RECRUITMENT EXPERTISE        ,"1,196.55",Feb-23
EREWASH BOROUGH COUNCIL,19351,Revenues and Benefits         ,Postages                      ,28-Dec-2022,ROYAL MAIL GROUP LTD.                   ,327.52,Feb-23
EREWASH BOROUGH COUNCIL,19649,Revenues and Benefits         ,Postages                      ,06-Jan-2023,ROYAL MAIL GROUP LTD.                   ,360.00,Feb-23
EREWASH BOROUGH COUNCIL,19777,Revenues and Benefits         ,Postages                      ,11-Jan-2023,ROYAL MAIL GROUP LTD.                   ,"1,740.94",Feb-23
EREWASH BOROUGH COUNCIL,20264,Revenues and Benefits         ,Postages                      ,25-Jan-2023,ROYAL MAIL GROUP LTD.                   ,756.60,Feb-23
EREWASH BOROUGH COUNCIL,20052,Revenues and Benefits         ,Postages                      ,18-Jan-2023,ROYAL MAIL GROUP LTD.                   ,671.52,Feb-23
EREWASH BOROUGH COUNCIL,20773,Housing Benefit Administration,Project Grants                ,26-Jan-2023,CIVICA UK LIMITED                       ,"6,525.00",Feb-23
EREWASH BOROUGH COUNCIL,20295,Non-domestic Rates Collection ,Fees Costs and Expenses       ,25-Jan-2023,INFORM CPI LTD                          ,840.00,Feb-23
EREWASH BOROUGH COUNCIL,20386,Internal Audit                ,Consultants Fees              ,26-Jan-2023,BDO                                     ,"2,100.00",Feb-23
EREWASH BOROUGH COUNCIL,20305,ICT Support Services          ,General Equipment             ,22-Jan-2023,BRITISH TELECOMMUNICATIONS PLC          ,"1,692.27",Feb-23
EREWASH BOROUGH COUNCIL,19710,ICT Support Services          ,General Equipment             ,04-Jan-2023,CCS MEDIA LIMITED                       ,779.55,Feb-23
EREWASH BOROUGH COUNCIL,20290,ICT Support Services          ,Equipment Leasing Charge      ,26-Jan-2023,ANNODATA LIMITED                        ,"2,586.90",Feb-23
EREWASH BOROUGH COUNCIL,20072,ICT Support Services          ,Maintenance of Equipment      ,16-Jan-2023,S2S ELECTRONICS LTD                     ,995.00,Feb-23
EREWASH BOROUGH COUNCIL,19906,ICT Support Services          ,Office Paper                  ,11-Jan-2023,ANTALIS DOCUMENT SUPPLIES               ,475.50,Feb-23
EREWASH BOROUGH COUNCIL,20266,ICT Support Services          ,Data Lines                    ,26-Jan-2023,ZEN INTERNET LIMITED                    ,"1,367.01",Feb-23
EREWASH BOROUGH COUNCIL,19750,ICT Support Services          ,Mobile Phones                 ,09-Jan-2023,CLASS AFFINITY PROJECTS LTD             ,"2,382.45",Feb-23
EREWASH BOROUGH COUNCIL,20138,ICT Support Services          ,Security                      ,19-Jan-2023,CCS MEDIA LIMITED                       ,394.68,Feb-23
EREWASH BOROUGH COUNCIL,20138,ICT Support Services          ,Security                      ,19-Jan-2023,CCS MEDIA LIMITED                       ,694.68,Feb-23
EREWASH BOROUGH COUNCIL,20580,Human Resources               ,Apprenticeship Levy           ,20-Feb-2023,HMRC CUMBERNAULD                        ,"1,992.00",Feb-23
EREWASH BOROUGH COUNCIL,20580,Human Resources               ,Apprenticeship Levy           ,20-Feb-2023,HMRC CUMBERNAULD                        ,"1,250.00",Feb-23
EREWASH BOROUGH COUNCIL,20840,Human Resources               ,Legal Expenses                ,26-Jan-2023,ELLIS-FERMOR & NEGUS                    ,300.00,Feb-23
EREWASH BOROUGH COUNCIL,19502,Occupational Health & Welfare ,Occupational Health Service   ,01-Jan-2023,BUPA HEALTH CLINICS                     ,435.32,Feb-23
EREWASH BOROUGH COUNCIL,20554,Occupational Health & Welfare ,Staff Welfare Grant           ,06-Feb-2023,EREWASH SOCIAL COMMITTEE                ,"3,550.00",Feb-23
EREWASH BOROUGH COUNCIL,19943,Training - HR Only            ,Courses and Seminars          ,13-Jan-2023,ASSOCIATION OF ELECTORAL ADMINISTRATORS ,400.50,Feb-23
EREWASH BOROUGH COUNCIL,20375,Development Control           ,Planning Fees                 ,31-Jan-2023,PORTALPLANQUEST LTD                     ,"1,848.00",Feb-23
EREWASH BOROUGH COUNCIL,20335,Development Control           ,Agency Staff                  ,23-Jan-2023,EXTRA PERSONNEL LTD                     ,319.20,Feb-23
EREWASH BOROUGH COUNCIL,20336,Development Control           ,Agency Staff                  ,23-Jan-2023,EXTRA PERSONNEL LTD                     ,413.28,Feb-23
EREWASH BOROUGH COUNCIL,19654,Development Control           ,Agency Staff                  ,03-Jan-2023,EXTRA PERSONNEL LTD                     ,319.20,Feb-23
EREWASH BOROUGH COUNCIL,19975,Development Control           ,Agency Staff                  ,13-Jan-2023,EXTRA PERSONNEL LTD                     ,255.36,Feb-23
EREWASH BOROUGH COUNCIL,20475,Development Control           ,Agency Staff                  ,13-Dec-2022,EXTRA PERSONNEL LTD                     ,319.20,Feb-23
EREWASH BOROUGH COUNCIL,20478,Development Control           ,Agency Staff                  ,13-Dec-2022,EXTRA PERSONNEL LTD                     ,472.42,Feb-23
EREWASH BOROUGH COUNCIL,20479,Development Control           ,Agency Staff                  ,05-Dec-2022,EXTRA PERSONNEL LTD                     ,546.49,Feb-23
EREWASH BOROUGH COUNCIL,20512,Development Control           ,Agency Staff                  ,27-Jan-2023,EXTRA PERSONNEL LTD                     ,478.80,Feb-23
EREWASH BOROUGH COUNCIL,20303,Development Control           ,Consultants Fees              ,17-Jan-2023,DERBYSHIRE COUNTY COUNCIL...            ,"2,977.72",Feb-23
EREWASH BOROUGH COUNCIL,20355,Development Control           ,Consultants Fees              ,27-Jan-2023,DERBYSHIRE WILDLIFE TRUST               ,"5,366.00",Feb-23
EREWASH BOROUGH COUNCIL,19709,Development Control           ,Consultants Fees              ,04-Jan-2023,ESSEX COUNTY COUNCIL                    ,"7,980.00",Feb-23
EREWASH BOROUGH COUNCIL,20355,Planning Policy               ,Consultants Fees              ,27-Jan-2023,DERBYSHIRE WILDLIFE TRUST               ,"5,366.00",Feb-23
EREWASH BOROUGH COUNCIL,20277,Planning Policy               ,Project Grants                ,25-Jan-2023,DERBYSHIRE COUNTY COUNCIL...            ,"50,000.00",Feb-23
EREWASH BOROUGH COUNCIL,20276,Planning Policy               ,Project Grants                ,25-Jan-2023,DERBYSHIRE COUNTY COUNCIL...            ,"116,666.66",Feb-23
EREWASH BOROUGH COUNCIL,20540,Economic Development          ,Grants and Subscriptions      ,10-Jan-2023,EREWASH PARTNERSHIP LTD                 ,"19,625.00",Feb-23
EREWASH BOROUGH COUNCIL,20093,Economic Development          ,Project Grants                ,18-Jan-2023,SYSTRA                                  ,"10,000.00",Feb-23
EREWASH BOROUGH COUNCIL,20291,Building Control - Fee Earning,Agency Staff                  ,20-Jan-2023,REED SPECIALIST RECRUITMENT LTD         ,667.10,Feb-23
EREWASH BOROUGH COUNCIL,19932,Building Control - Fee Earning,Agency Staff                  ,06-Jan-2023,REED SPECIALIST RECRUITMENT LTD         ,690.42,Feb-23
EREWASH BOROUGH COUNCIL,20150,Building Control - Fee Earning,Agency Staff                  ,13-Jan-2023,REED SPECIALIST RECRUITMENT LTD         ,657.77,Feb-23
EREWASH BOROUGH COUNCIL,20536,Building Control - Fee Earning,Agency Staff                  ,27-Jan-2023,REED SPECIALIST RECRUITMENT LTD         ,547.67,Feb-23
EREWASH BOROUGH COUNCIL,19610,Building Control - Fee Earning,Agency Staff                  ,04-Jan-2023,MATCHTECH GROUP (UK) LIMITED            ,896.50,Feb-23
EREWASH BOROUGH COUNCIL,19882,Building Control - Fee Earning,Agency Staff                  ,12-Jan-2023,MATCHTECH GROUP (UK) LIMITED            ,412.50,Feb-23
EREWASH BOROUGH COUNCIL,19881,Building Control - Fee Earning,Agency Staff                  ,12-Jan-2023,MATCHTECH GROUP (UK) LIMITED            ,990.00,Feb-23
EREWASH BOROUGH COUNCIL,19880,Building Control - Fee Earning,Agency Staff                  ,12-Jan-2023,MATCHTECH GROUP (UK) LIMITED            ,"1,141.25",Feb-23
EREWASH BOROUGH COUNCIL,20261,Building Control - Fee Earning,Agency Staff                  ,25-Jan-2023,MATCHTECH GROUP (UK) LIMITED            ,803.00,Feb-23
EREWASH BOROUGH COUNCIL,20262,Building Control - Fee Earning,Agency Staff                  ,25-Jan-2023,MATCHTECH GROUP (UK) LIMITED            ,990.00,Feb-23
EREWASH BOROUGH COUNCIL,20263,Building Control - Fee Earning,Agency Staff                  ,25-Jan-2023,MATCHTECH GROUP (UK) LIMITED            ,"1,650.00",Feb-23
EREWASH BOROUGH COUNCIL,20047,Building Control - Fee Earning,Agency Staff                  ,18-Jan-2023,MATCHTECH GROUP (UK) LIMITED            ,825.00,Feb-23
EREWASH BOROUGH COUNCIL,20048,Building Control - Fee Earning,Agency Staff                  ,18-Jan-2023,MATCHTECH GROUP (UK) LIMITED            ,990.00,Feb-23
EREWASH BOROUGH COUNCIL,20045,Building Control - Fee Earning,Agency Staff                  ,18-Jan-2023,MATCHTECH GROUP (UK) LIMITED            ,"1,471.25",Feb-23
EREWASH BOROUGH COUNCIL,20275,Registration of Electors      ,Postages                      ,27-Jan-2023,ROYAL MAIL GROUP LTD.                   ,"1,084.60",Feb-23
EREWASH BOROUGH COUNCIL,20063,Registration of Electors      ,Postages                      ,17-Jan-2023,SCI PRINT LTD                           ,"3,252.82",Feb-23
EREWASH BOROUGH COUNCIL,20062,Registration of Electors      ,Canvassers                    ,17-Jan-2023,SCI PRINT LTD                           ,"3,697.14",Feb-23
EREWASH BOROUGH COUNCIL,20568,Elections                     ,General Equipment             ,31-Jan-2023,TRENT MARQUEES                          ,275.00,Feb-23
EREWASH BOROUGH COUNCIL,20967,Local Land Charges            ,County Council Search Charges ,15-Feb-2023,DERBYSHIRE COUNTY COUNCIL...            ,"2,631.43",Feb-23
EREWASH BOROUGH COUNCIL,20966,Local Land Charges            ,County Council Search Charges ,13-Feb-2023,DERBYSHIRE COUNTY COUNCIL...            ,"3,780.60",Feb-23
EREWASH BOROUGH COUNCIL,20396,Legal Services                ,Stamp Duty and Search Fees    ,30-Jan-2023,CORNERSTONE BARRISTERS                  ,350.00,Feb-23
EREWASH BOROUGH COUNCIL,20361,Civic Transport               ,Hire Charges                  ,31-Jan-2023,PINNACLE EXECUTIVE CARS LIMITED         ,706.00,Feb-23
EREWASH BOROUGH COUNCIL,19872,Democratic Representation     ,Hire Charges                  ,12-Jan-2023,HALL'S TRAVEL                           ,320.00,Feb-23
EREWASH BOROUGH COUNCIL,20722,Democratic Representation     ,Hire Charges                  ,08-Feb-2023,HALL'S TRAVEL                           ,320.00,Feb-23
EREWASH BOROUGH COUNCIL,21226,Democratic Representation     ,Travelling and Subsistence    ,27-Feb-2023,CLICK TRAVEL LTD                        ,651.30,Feb-23
EREWASH BOROUGH COUNCIL,20344,Democratic Representation     ,Maintenance of Equipment      ,30-Jan-2023,CIVICA UK LIMITED                       ,"12,880.58",Feb-23
EREWASH BOROUGH COUNCIL,20341,Green Space                   ,Agency Staff                  ,23-Jan-2023,EXTRA PERSONNEL LTD                     ,"1,966.54",Feb-23
EREWASH BOROUGH COUNCIL,20342,Green Space                   ,Agency Staff                  ,23-Jan-2023,EXTRA PERSONNEL LTD                     ,"2,051.24",Feb-23
EREWASH BOROUGH COUNCIL,20498,Green Space                   ,Agency Staff                  ,18-Jan-2023,EXTRA PERSONNEL LTD                     ,"3,744.39",Feb-23
EREWASH BOROUGH COUNCIL,20057,Green Space                   ,Agency Staff                  ,18-Jan-2023,EXTRA PERSONNEL LTD                     ,"4,985.32",Feb-23
EREWASH BOROUGH COUNCIL,19720,Green Space                   ,Agency Staff                  ,06-Jan-2023,EXTRA PERSONNEL LTD                     ,"1,205.32",Feb-23
EREWASH BOROUGH COUNCIL,19721,Green Space                   ,Agency Staff                  ,06-Jan-2023,EXTRA PERSONNEL LTD                     ,"1,129.13",Feb-23
EREWASH BOROUGH COUNCIL,19981,Green Space                   ,Agency Staff                  ,13-Jan-2023,EXTRA PERSONNEL LTD                     ,"1,523.14",Feb-23
EREWASH BOROUGH COUNCIL,19661,Green Space                   ,Agency Staff                  ,03-Jan-2023,EXTRA PERSONNEL LTD                     ,"1,414.25",Feb-23
EREWASH BOROUGH COUNCIL,19982,Green Space                   ,Agency Staff                  ,13-Jan-2023,EXTRA PERSONNEL LTD                     ,"1,490.48",Feb-23
EREWASH BOROUGH COUNCIL,19660,Green Space                   ,Agency Staff                  ,03-Jan-2023,EXTRA PERSONNEL LTD                     ,"1,847.14",Feb-23
EREWASH BOROUGH COUNCIL,20483,Green Space                   ,Agency Staff                  ,13-Dec-2022,EXTRA PERSONNEL LTD                     ,"1,868.24",Feb-23
EREWASH BOROUGH COUNCIL,20484,Green Space                   ,Agency Staff                  ,05-Dec-2022,EXTRA PERSONNEL LTD                     ,"1,901.38",Feb-23
EREWASH BOROUGH COUNCIL,20485,Green Space                   ,Agency Staff                  ,05-Dec-2022,EXTRA PERSONNEL LTD                     ,"1,789.16",Feb-23
EREWASH BOROUGH COUNCIL,20486,Green Space                   ,Agency Staff                  ,13-Dec-2022,EXTRA PERSONNEL LTD                     ,"2,012.13",Feb-23
EREWASH BOROUGH COUNCIL,20503,Green Space                   ,Agency Staff                  ,27-Jan-2023,EXTRA PERSONNEL LTD                     ,"2,033.83",Feb-23
EREWASH BOROUGH COUNCIL,20501,Green Space                   ,Agency Staff                  ,27-Jan-2023,EXTRA PERSONNEL LTD                     ,"2,158.13",Feb-23
EREWASH BOROUGH COUNCIL,19618,Green Space                   ,Agency Staff                  ,04-Jan-2023,EXTRA PERSONNEL LTD                     ,"2,570.29",Feb-23
EREWASH BOROUGH COUNCIL,20778,Green Space                   ,Training                      ,09-Feb-2023,ROAD HAULAGE ASSOCIATION                ,"1,350.00",Feb-23
EREWASH BOROUGH COUNCIL,20800,Green Space                   ,Training                      ,13-Feb-2023,ROAD HAULAGE ASSOCIATION                ,675.00,Feb-23
EREWASH BOROUGH COUNCIL,20130,Green Space                   ,Training                      ,19-Jan-2023,VIA EAST MIDLANDS LTD                   ,"1,250.00",Feb-23
EREWASH BOROUGH COUNCIL,20387,Green Space                   ,Electricity                   ,20-Jan-2023,TOTALENERGIES GAS & POWER LTD           ,"2,041.63",Feb-23
EREWASH BOROUGH COUNCIL,20531,Green Space                   ,Electricity                   ,20-Jan-2023,TOTALENERGIES GAS & POWER LTD           ,"3,972.54",Feb-23
EREWASH BOROUGH COUNCIL,20531,Green Space                   ,Electricity                   ,20-Jan-2023,TOTALENERGIES GAS & POWER LTD           ,"1,412.26",Feb-23
EREWASH BOROUGH COUNCIL,20104,Green Space                   ,Gas                           ,11-Jan-2023,TOTALENERGIES GAS & POWER LTD           ,562.07,Feb-23
EREWASH BOROUGH COUNCIL,20104,Green Space                   ,Gas                           ,11-Jan-2023,TOTALENERGIES GAS & POWER LTD           ,"1,040.68",Feb-23
EREWASH BOROUGH COUNCIL,19883,Green Space                   ,Metered Water                 ,04-Jan-2023,SCOTTISH WATER BUSINESS STREAM LIMITED  ,"2,383.13",Feb-23
EREWASH BOROUGH COUNCIL,20613,Green Space                   ,Vehicle Tracking Repairs and M,01-Feb-2023,CASTLE GROUP LTD                        ,"1,296.00",Feb-23
EREWASH BOROUGH COUNCIL,19875,Green Space                   ,Materials and Consumables     ,10-Jan-2023,SCREWFIX DIRECT LTD                     ,321.68,Feb-23
EREWASH BOROUGH COUNCIL,20360,Green Space                   ,Materials and Consumables     ,20-Jan-2023,TRENT VALLEY TRAINING                   ,435.00,Feb-23
EREWASH BOROUGH COUNCIL,20363,Green Space                   ,Materials and Consumables     ,18-Jan-2023,VITAX LTD                               ,"1,063.39",Feb-23
EREWASH BOROUGH COUNCIL,20149,Green Space                   ,Materials and Consumables     ,14-Jan-2023,STANTON RECYCLING LIMITED               ,840.80,Feb-23
EREWASH BOROUGH COUNCIL,19870,Green Space                   ,Materials and Consumables     ,10-Jan-2023,PROTECTIVE WEAR SUPPLIES LTD            ,366.67,Feb-23
EREWASH BOROUGH COUNCIL,18970,Green Space                   ,Materials and Consumables     ,08-Dec-2022,LARCH GROUNDWORK LTD                    ,550.00,Feb-23
EREWASH BOROUGH COUNCIL,20399,Green Space                   ,Contracted Services           ,30-Sep-2022,T H HEATH  CONTRACTS  LTD               ,860.00,Feb-23
EREWASH BOROUGH COUNCIL,20082,Green Space                   ,Contracted Services           ,17-Jan-2023,T H HEATH  CONTRACTS  LTD               ,560.00,Feb-23
EREWASH BOROUGH COUNCIL,20140,Green Space                   ,Repairs and Maintenance       ,20-Jan-2023,RUSSELLS (KIRBYMOORSIDE) LIMITED        ,311.85,Feb-23
EREWASH BOROUGH COUNCIL,19859,Green Space                   ,Repairs and Maintenance       ,10-Jan-2023,HENTON & CHATTELL LTD                   ,253.14,Feb-23
EREWASH BOROUGH COUNCIL,20085,Green Space                   ,Repairs and Maintenance       ,17-Jan-2023,AQUA CLEAN                              ,67.03,Feb-23
EREWASH BOROUGH COUNCIL,20367,Green Space                   ,Repairs and Maintenance       ,30-Jan-2023,LARKLANDS BODY & PAINT CENTRE           ,"1,805.86",Feb-23
EREWASH BOROUGH COUNCIL,20161,Green Space                   ,Repairs and Maintenance       ,11-Jan-2023,LEDAM MAINTENANCE SUPPLIES              ,173.86,Feb-23
EREWASH BOROUGH COUNCIL,20543,Trees Hedges Local Nature Res ,Contracted Services           ,30-Jan-2023,RAMMSANDERSON ECOLOGY LTD               ,715.00,Feb-23
EREWASH BOROUGH COUNCIL,20365,Trees Hedges Local Nature Res ,Contracted Services           ,25-Jan-2023,TOM RICHARDS TREE SERVICES              ,"3,090.00",Feb-23
EREWASH BOROUGH COUNCIL,20365,Trees Hedges Local Nature Res ,Contracted Services           ,25-Jan-2023,TOM RICHARDS TREE SERVICES              ,"3,390.00",Feb-23
EREWASH BOROUGH COUNCIL,21076,Trees Hedges Local Nature Res ,Contracted Services           ,15-Feb-2023,TOM RICHARDS TREE SERVICES              ,400.00,Feb-23
EREWASH BOROUGH COUNCIL,20860,Trees Hedges Local Nature Res ,Contracted Services           ,21-Nov-2022,TOM RICHARDS TREE SERVICES              ,850.00,Feb-23
EREWASH BOROUGH COUNCIL,20348,Play Areas                    ,Contracted Services           ,25-Jan-2023,WICKSTEED LEISURE LTD                   ,852.88,Feb-23
EREWASH BOROUGH COUNCIL,19518,Play Areas                    ,Materials and Consumables     ,03-Jan-2023,B & S CHAINS (MIDLANDS) LTD             ,528.00,Feb-23
EREWASH BOROUGH COUNCIL,20071,Play Areas                    ,Materials and Consumables     ,16-Jan-2023,WICKSTEED LEISURE LTD                   ,398.63,Feb-23
EREWASH BOROUGH COUNCIL,19944,Play Areas                    ,Materials and Consumables     ,12-Jan-2023,WICKSTEED LEISURE LTD                   ,477.40,Feb-23
EREWASH BOROUGH COUNCIL,20348,Play Areas                    ,Contracted Services           ,25-Jan-2023,WICKSTEED LEISURE LTD                   ,"1,000.00",Feb-23
EREWASH BOROUGH COUNCIL,20342,Public Conveniences           ,Agency Staff                  ,23-Jan-2023,EXTRA PERSONNEL LTD                     ,500.00,Feb-23
EREWASH BOROUGH COUNCIL,20498,Public Conveniences           ,Agency Staff                  ,18-Jan-2023,EXTRA PERSONNEL LTD                     ,"1,000.00",Feb-23
EREWASH BOROUGH COUNCIL,19721,Public Conveniences           ,Agency Staff                  ,06-Jan-2023,EXTRA PERSONNEL LTD                     ,500.00,Feb-23
EREWASH BOROUGH COUNCIL,19661,Public Conveniences           ,Agency Staff                  ,03-Jan-2023,EXTRA PERSONNEL LTD                     ,500.00,Feb-23
EREWASH BOROUGH COUNCIL,19982,Public Conveniences           ,Agency Staff                  ,13-Jan-2023,EXTRA PERSONNEL LTD                     ,500.00,Feb-23
EREWASH BOROUGH COUNCIL,20485,Public Conveniences           ,Agency Staff                  ,05-Dec-2022,EXTRA PERSONNEL LTD                     ,500.00,Feb-23
EREWASH BOROUGH COUNCIL,20486,Public Conveniences           ,Agency Staff                  ,13-Dec-2022,EXTRA PERSONNEL LTD                     ,500.00,Feb-23
EREWASH BOROUGH COUNCIL,20501,Public Conveniences           ,Agency Staff                  ,27-Jan-2023,EXTRA PERSONNEL LTD                     ,500.00,Feb-23
EREWASH BOROUGH COUNCIL,20531,Public Conveniences           ,Electricity                   ,20-Jan-2023,TOTALENERGIES GAS & POWER LTD           ,341.22,Feb-23
EREWASH BOROUGH COUNCIL,20531,Public Conveniences           ,Electricity                   ,20-Jan-2023,TOTALENERGIES GAS & POWER LTD           ,875.71,Feb-23
EREWASH BOROUGH COUNCIL,19883,Public Conveniences           ,Metered Water                 ,04-Jan-2023,SCOTTISH WATER BUSINESS STREAM LIMITED  ,"1,747.94",Feb-23
EREWASH BOROUGH COUNCIL,20393,Watercourse Maintenance       ,Contracted Services           ,30-Jan-2023,MANDERS FENCING & GARDEN SERVICES       ,"3,730.00",Feb-23
EREWASH BOROUGH COUNCIL,20393,Watercourse Maintenance       ,Contracted Services           ,30-Jan-2023,MANDERS FENCING & GARDEN SERVICES       ,863.33,Feb-23
EREWASH BOROUGH COUNCIL,20341,Street Scene                  ,Agency Staff                  ,23-Jan-2023,EXTRA PERSONNEL LTD                     ,"1,966.53",Feb-23
EREWASH BOROUGH COUNCIL,20342,Street Scene                  ,Agency Staff                  ,23-Jan-2023,EXTRA PERSONNEL LTD                     ,"2,051.23",Feb-23
EREWASH BOROUGH COUNCIL,20498,Street Scene                  ,Agency Staff                  ,18-Jan-2023,EXTRA PERSONNEL LTD                     ,"3,744.38",Feb-23
EREWASH BOROUGH COUNCIL,20057,Street Scene                  ,Agency Staff                  ,18-Jan-2023,EXTRA PERSONNEL LTD                     ,"4,985.31",Feb-23
EREWASH BOROUGH COUNCIL,19720,Street Scene                  ,Agency Staff                  ,06-Jan-2023,EXTRA PERSONNEL LTD                     ,"1,205.32",Feb-23
EREWASH BOROUGH COUNCIL,19721,Street Scene                  ,Agency Staff                  ,06-Jan-2023,EXTRA PERSONNEL LTD                     ,"1,129.13",Feb-23
EREWASH BOROUGH COUNCIL,19981,Street Scene                  ,Agency Staff                  ,13-Jan-2023,EXTRA PERSONNEL LTD                     ,"1,523.14",Feb-23
EREWASH BOROUGH COUNCIL,19661,Street Scene                  ,Agency Staff                  ,03-Jan-2023,EXTRA PERSONNEL LTD                     ,"1,414.25",Feb-23
EREWASH BOROUGH COUNCIL,19982,Street Scene                  ,Agency Staff                  ,13-Jan-2023,EXTRA PERSONNEL LTD                     ,"1,490.48",Feb-23
EREWASH BOROUGH COUNCIL,19660,Street Scene                  ,Agency Staff                  ,03-Jan-2023,EXTRA PERSONNEL LTD                     ,"1,847.13",Feb-23
EREWASH BOROUGH COUNCIL,20483,Street Scene                  ,Agency Staff                  ,13-Dec-2022,EXTRA PERSONNEL LTD                     ,"1,868.24",Feb-23
EREWASH BOROUGH COUNCIL,20484,Street Scene                  ,Agency Staff                  ,05-Dec-2022,EXTRA PERSONNEL LTD                     ,"1,901.38",Feb-23
EREWASH BOROUGH COUNCIL,20485,Street Scene                  ,Agency Staff                  ,05-Dec-2022,EXTRA PERSONNEL LTD                     ,"1,789.15",Feb-23
EREWASH BOROUGH COUNCIL,20486,Street Scene                  ,Agency Staff                  ,13-Dec-2022,EXTRA PERSONNEL LTD                     ,"2,012.12",Feb-23
EREWASH BOROUGH COUNCIL,20503,Street Scene                  ,Agency Staff                  ,27-Jan-2023,EXTRA PERSONNEL LTD                     ,"2,033.82",Feb-23
EREWASH BOROUGH COUNCIL,20501,Street Scene                  ,Agency Staff                  ,27-Jan-2023,EXTRA PERSONNEL LTD                     ,"2,158.12",Feb-23
EREWASH BOROUGH COUNCIL,19618,Street Scene                  ,Agency Staff                  ,04-Jan-2023,EXTRA PERSONNEL LTD                     ,"2,570.29",Feb-23
EREWASH BOROUGH COUNCIL,19762,Street Scene                  ,Materials and Consumables     ,07-Jan-2023,SMARTSTREETS LTD                        ,495.00,Feb-23
EREWASH BOROUGH COUNCIL,20770,Street Scene                  ,Materials and Consumables     ,15-Dec-2022,LBS WORLDWIDE LTD                       ,393.32,Feb-23
EREWASH BOROUGH COUNCIL,20124,Street Scene                  ,Materials and Consumables     ,19-Jan-2023,CROMWELL POLYTHENE LTD                  ,"1,192.80",Feb-23
EREWASH BOROUGH COUNCIL,20179,Street Scene                  ,Materials and Consumables     ,23-Jan-2023,CROMWELL POLYTHENE LTD                  ,"3,381.60",Feb-23
EREWASH BOROUGH COUNCIL,20085,Street Scene                  ,Repairs and Maintenance       ,17-Jan-2023,AQUA CLEAN                              ,67.04,Feb-23
EREWASH BOROUGH COUNCIL,20161,Street Scene                  ,Repairs and Maintenance       ,11-Jan-2023,LEDAM MAINTENANCE SUPPLIES              ,173.86,Feb-23
EREWASH BOROUGH COUNCIL,20278,Dog Control                   ,Kennelling Costs              ,10-Jan-2023,EREWASH PARTNERSHIP LTD                 ,411.84,Feb-23
EREWASH BOROUGH COUNCIL,20085,Neighbourhood Wardens         ,Repairs and Maintenance       ,17-Jan-2023,AQUA CLEAN                              ,0.00,Feb-23
EREWASH BOROUGH COUNCIL,20531,CCTV - Ilkeston and Long Eaton,Electricity                   ,20-Jan-2023,TOTALENERGIES GAS & POWER LTD           ,721.97,Feb-23
EREWASH BOROUGH COUNCIL,20313,CCTV - Ilkeston and Long Eaton,Contracted Services           ,24-Jan-2023,SYNECTICS SECURITY LIMITED              ,"3,075.75",Feb-23
EREWASH BOROUGH COUNCIL,20180,Car Parking                   ,Reactive Maintenance          ,23-Jan-2023,ATG ACCESS LTD                          ,513.96,Feb-23
EREWASH BOROUGH COUNCIL,20531,Car Parking                   ,Electricity                   ,20-Jan-2023,TOTALENERGIES GAS & POWER LTD           ,"1,555.78",Feb-23
EREWASH BOROUGH COUNCIL,19525,Car Parking                   ,Contracted Services           ,31-Dec-2022,KINGS ARMOURED SECURITY SERVICES        ,"1,415.20",Feb-23
EREWASH BOROUGH COUNCIL,19529,Car Parking                   ,Civil Parking Enforcement     ,31-Dec-2022,INTERNATIONAL PARKING SYSTEMS UK LTD    ,"2,137.20",Feb-23
EREWASH BOROUGH COUNCIL,20387,Long Eaton Market             ,Electricity                   ,20-Jan-2023,TOTALENERGIES GAS & POWER LTD           ,295.30,Feb-23
EREWASH BOROUGH COUNCIL,20340,Long Eaton Market             ,Agency Staff                  ,23-Jan-2023,EXTRA PERSONNEL LTD                     ,239.77,Feb-23
EREWASH BOROUGH COUNCIL,19659,Long Eaton Market             ,Agency Staff                  ,03-Jan-2023,EXTRA PERSONNEL LTD                     ,235.25,Feb-23
EREWASH BOROUGH COUNCIL,20477,Long Eaton Market             ,Agency Staff                  ,05-Dec-2022,EXTRA PERSONNEL LTD                     ,243.00,Feb-23
EREWASH BOROUGH COUNCIL,19980,Long Eaton Market             ,Agency Staff                  ,13-Jan-2023,EXTRA PERSONNEL LTD                     ,248.82,Feb-23
EREWASH BOROUGH COUNCIL,20476,Long Eaton Market             ,Agency Staff                  ,13-Dec-2022,EXTRA PERSONNEL LTD                     ,271.44,Feb-23
EREWASH BOROUGH COUNCIL,20499,Long Eaton Market             ,Agency Staff                  ,27-Jan-2023,EXTRA PERSONNEL LTD                     ,271.44,Feb-23
EREWASH BOROUGH COUNCIL,20531,Ilkeston Market               ,Electricity                   ,20-Jan-2023,TOTALENERGIES GAS & POWER LTD           ,801.77,Feb-23
EREWASH BOROUGH COUNCIL,20340,Ilkeston Market               ,Agency Staff                  ,23-Jan-2023,EXTRA PERSONNEL LTD                     ,159.85,Feb-23
EREWASH BOROUGH COUNCIL,19659,Ilkeston Market               ,Agency Staff                  ,03-Jan-2023,EXTRA PERSONNEL LTD                     ,156.83,Feb-23
EREWASH BOROUGH COUNCIL,20477,Ilkeston Market               ,Agency Staff                  ,05-Dec-2022,EXTRA PERSONNEL LTD                     ,162.00,Feb-23
EREWASH BOROUGH COUNCIL,19980,Ilkeston Market               ,Agency Staff                  ,13-Jan-2023,EXTRA PERSONNEL LTD                     ,165.88,Feb-23
EREWASH BOROUGH COUNCIL,20476,Ilkeston Market               ,Agency Staff                  ,13-Dec-2022,EXTRA PERSONNEL LTD                     ,180.96,Feb-23
EREWASH BOROUGH COUNCIL,20499,Ilkeston Market               ,Agency Staff                  ,27-Jan-2023,EXTRA PERSONNEL LTD                     ,180.96,Feb-23
EREWASH BOROUGH COUNCIL,20531,Shopmobility - Ilkeston       ,Electricity                   ,20-Jan-2023,TOTALENERGIES GAS & POWER LTD           ,500.63,Feb-23
EREWASH BOROUGH COUNCIL,20531,Shopmobility - Long Eaton     ,Electricity                   ,20-Jan-2023,TOTALENERGIES GAS & POWER LTD           ,"1,530.37",Feb-23
EREWASH BOROUGH COUNCIL,20319,Commissioned Projects         ,General Equipment             ,25-Jan-2023,EREWASH VALLEY GYMNASTICS CLUB          ,400.00,Feb-23
EREWASH BOROUGH COUNCIL,19961,Commissioned Projects         ,General Equipment             ,13-Jan-2023,CCS MEDIA LIMITED                       ,"1,949.25",Feb-23
EREWASH BOROUGH COUNCIL,19946,Commissioned Projects         ,Grants and Subscriptions      ,12-Jan-2023,DERBY COUNTY COMMUNITY TRUST            ,"1,080.00",Feb-23
EREWASH BOROUGH COUNCIL,19638,Commissioned Projects         ,Fees Costs and Expenses       ,05-Jan-2023,LEGACY LEISURE LTD                      ,"1,980.00",Feb-23
EREWASH BOROUGH COUNCIL,20325,Property and Estates          ,Planned Preventative Maintenan,26-Jan-2023,ALPHA PARTNER (MIDLANDS)  LIMITED       ,"10,424.00",Feb-23
EREWASH BOROUGH COUNCIL,20615,Property and Estates          ,Repairs and Maintenance       ,22-Dec-2022,BAILY GARNER LLP                        ,"1,317.20",Feb-23
EREWASH BOROUGH COUNCIL,20616,Property and Estates          ,Repairs and Maintenance       ,22-Dec-2022,BAILY GARNER LLP                        ,"1,317.20",Feb-23
EREWASH BOROUGH COUNCIL,21060,Property and Estates          ,Repairs and Maintenance       ,30-Dec-2022,SISSON PLUMBING & HEATING               ,440.00,Feb-23
EREWASH BOROUGH COUNCIL,20294,Property and Estates          ,Repairs and Maintenance       ,28-Jan-2023,PEEL ELECTRICAL LTD                     ,361.62,Feb-23
EREWASH BOROUGH COUNCIL,20067,Property and Estates          ,Repairs and Maintenance       ,19-Jan-2023,PEEL ELECTRICAL LTD                     ,286.20,Feb-23
EREWASH BOROUGH COUNCIL,20300,Property and Estates          ,Repairs and Maintenance       ,24-Jan-2023,ACCESS DOORS LTD                        ,400.00,Feb-23
EREWASH BOROUGH COUNCIL,20154,Property and Estates          ,Repairs and Maintenance       ,19-Jan-2023,ALPHA PARTNER (MIDLANDS)  LIMITED       ,780.00,Feb-23
EREWASH BOROUGH COUNCIL,20128,Property and Estates          ,Reactive Maintenance          ,18-Jan-2023,NEP ENERGY SERVICES LTD                 ,375.00,Feb-23
EREWASH BOROUGH COUNCIL,20155,Property and Estates          ,Reactive Maintenance          ,19-Jan-2023,ALPHA PARTNER (MIDLANDS)  LIMITED       ,345.00,Feb-23
EREWASH BOROUGH COUNCIL,20164,Property and Estates          ,Reactive Maintenance          ,19-Jan-2023,ALPHA PARTNER (MIDLANDS)  LIMITED       ,360.00,Feb-23
EREWASH BOROUGH COUNCIL,19683,Property and Estates          ,Reactive Maintenance          ,08-Jan-2023,ALPHA PARTNER (MIDLANDS)  LIMITED       ,265.00,Feb-23
EREWASH BOROUGH COUNCIL,19684,Property and Estates          ,Reactive Maintenance          ,08-Jan-2023,ALPHA PARTNER (MIDLANDS)  LIMITED       ,420.00,Feb-23
EREWASH BOROUGH COUNCIL,19924,Property and Estates          ,Reactive Maintenance          ,08-Jan-2023,ALPHA PARTNER (MIDLANDS)  LIMITED       ,460.00,Feb-23
EREWASH BOROUGH COUNCIL,19687,Property and Estates          ,Reactive Maintenance          ,08-Jan-2023,ALPHA PARTNER (MIDLANDS)  LIMITED       ,468.00,Feb-23
EREWASH BOROUGH COUNCIL,19682,Property and Estates          ,Reactive Maintenance          ,08-Jan-2023,ALPHA PARTNER (MIDLANDS)  LIMITED       ,780.00,Feb-23
EREWASH BOROUGH COUNCIL,19688,Property and Estates          ,Reactive Maintenance          ,08-Jan-2023,ALPHA PARTNER (MIDLANDS)  LIMITED       ,"1,389.00",Feb-23
EREWASH BOROUGH COUNCIL,20152,Property and Estates          ,Reactive Maintenance          ,19-Jan-2023,ALPHA PARTNER (MIDLANDS)  LIMITED       ,752.00,Feb-23
EREWASH BOROUGH COUNCIL,20289,Property and Estates          ,Alarms Reactive Maintenance   ,27-Jan-2023,TECSERV UK                              ,661.61,Feb-23
EREWASH BOROUGH COUNCIL,19753,Parks Pavilions               ,PPM Mechanical and Equipment  ,07-Jan-2023,MDB PLUMBING (NOTTM) LTD                ,366.63,Feb-23
EREWASH BOROUGH COUNCIL,20387,Merlin Way Depot              ,Electricity                   ,20-Jan-2023,TOTALENERGIES GAS & POWER LTD           ,"4,415.19",Feb-23
EREWASH BOROUGH COUNCIL,20104,Merlin Way Depot              ,Gas                           ,11-Jan-2023,TOTALENERGIES GAS & POWER LTD           ,"1,089.79",Feb-23
EREWASH BOROUGH COUNCIL,19883,Merlin Way Depot              ,Metered Water                 ,04-Jan-2023,SCOTTISH WATER BUSINESS STREAM LIMITED  ,"1,469.02",Feb-23
EREWASH BOROUGH COUNCIL,20060,Civic Accommodation Long Eaton,Agency Staff                  ,18-Jan-2023,EXTRA PERSONNEL LTD                     ,421.20,Feb-23
EREWASH BOROUGH COUNCIL,20060,Civic Accommodation Long Eaton,Agency Staff                  ,18-Jan-2023,EXTRA PERSONNEL LTD                     ,484.38,Feb-23
EREWASH BOROUGH COUNCIL,19968,Civic Accommodation Long Eaton,PPM Mechanical and Equipment  ,14-Jan-2023,MDB PLUMBING (NOTTM) LTD                ,645.01,Feb-23
EREWASH BOROUGH COUNCIL,19967,Civic Accommodation Long Eaton,PPM Mechanical and Equipment  ,14-Jan-2023,MDB PLUMBING (NOTTM) LTD                ,888.06,Feb-23
EREWASH BOROUGH COUNCIL,20387,Civic Accommodation Long Eaton,Electricity                   ,20-Jan-2023,TOTALENERGIES GAS & POWER LTD           ,"3,582.06",Feb-23
EREWASH BOROUGH COUNCIL,20104,Civic Accommodation Long Eaton,Gas                           ,11-Jan-2023,TOTALENERGIES GAS & POWER LTD           ,"1,560.67",Feb-23
EREWASH BOROUGH COUNCIL,20104,Bridge House - Long Eaton     ,Gas                           ,11-Jan-2023,TOTALENERGIES GAS & POWER LTD           ,455.63,Feb-23
EREWASH BOROUGH COUNCIL,20338,Civic Accommodation Ilkeston  ,Agency Staff                  ,23-Jan-2023,EXTRA PERSONNEL LTD                     ,307.40,Feb-23
EREWASH BOROUGH COUNCIL,20060,Civic Accommodation Ilkeston  ,Agency Staff                  ,18-Jan-2023,EXTRA PERSONNEL LTD                     ,639.09,Feb-23
EREWASH BOROUGH COUNCIL,20387,Civic Accommodation Ilkeston  ,Electricity                   ,20-Jan-2023,TOTALENERGIES GAS & POWER LTD           ,"2,504.48",Feb-23
EREWASH BOROUGH COUNCIL,20531,Civic Accommodation Ilkeston  ,Electricity                   ,20-Jan-2023,TOTALENERGIES GAS & POWER LTD           ,911.66,Feb-23
EREWASH BOROUGH COUNCIL,20104,Civic Accommodation Ilkeston  ,Gas                           ,11-Jan-2023,TOTALENERGIES GAS & POWER LTD           ,"1,936.89",Feb-23
EREWASH BOROUGH COUNCIL,20531,Toll Bar House                ,Electricity                   ,20-Jan-2023,TOTALENERGIES GAS & POWER LTD           ,"7,131.74",Feb-23
EREWASH BOROUGH COUNCIL,20060,Toll Bar House                ,Agency Staff                  ,18-Jan-2023,EXTRA PERSONNEL LTD                     ,435.93,Feb-23
EREWASH BOROUGH COUNCIL,19883,Toll Bar House                ,Metered Water                 ,04-Jan-2023,SCOTTISH WATER BUSINESS STREAM LIMITED  ,534.42,Feb-23
EREWASH BOROUGH COUNCIL,20545,Toll Bar House                ,Alarms Planned Maintenence    ,30-Jan-2023,TECSERV UK                              ,256.76,Feb-23
EREWASH BOROUGH COUNCIL,20387,Sandiacre Friesland Sports Ctr,Electricity                   ,20-Jan-2023,TOTALENERGIES GAS & POWER LTD           ,"1,259.81",Feb-23
EREWASH BOROUGH COUNCIL,20104,Sandiacre Friesland Sports Ctr,Gas                           ,11-Jan-2023,TOTALENERGIES GAS & POWER LTD           ,855.45,Feb-23
EREWASH BOROUGH COUNCIL,19883,Rutland Sports Park           ,Metered Water                 ,04-Jan-2023,SCOTTISH WATER BUSINESS STREAM LIMITED  ,467.25,Feb-23
EREWASH BOROUGH COUNCIL,21042,EBC Balance Sheet             ,Employee Bike Loans           ,06-Feb-2023,REDACTED PERSONAL DATA,"1,000.00",Feb-23
EREWASH BOROUGH COUNCIL,20359,EBC Balance Sheet             ,Fuel Store                    ,19-Jan-2023,STEVE BEAUMONT LTD T/A AUTOSMART        ,"1,625.00",Feb-23
EREWASH BOROUGH COUNCIL,20580,EBC Balance Sheet             ,Payroll Coll Acc - Income Tax ,20-Feb-2023,HMRC CUMBERNAULD                        ,"68,550.48",Feb-23
EREWASH BOROUGH COUNCIL,20578,EBC Balance Sheet             ,Payroll Coll Acc - Income Tax ,20-Feb-2023,HMRC CUMBERNAULD                        ,453.80,Feb-23
EREWASH BOROUGH COUNCIL,20347,EBC Balance Sheet             ,Payroll Coll Acc Superanuation,15-Feb-2023,DERBYSHIRE COUNTY COUNCIL...            ,"123,281.33",Feb-23
EREWASH BOROUGH COUNCIL,20347,EBC Balance Sheet             ,Payroll Coll Acc Superanuation,15-Feb-2023,DERBYSHIRE COUNTY COUNCIL...            ,"83,250.00",Feb-23
EREWASH BOROUGH COUNCIL,20580,EBC Balance Sheet             ,Payroll Coll Acc National Ins ,20-Feb-2023,HMRC CUMBERNAULD                        ,"94,340.35",Feb-23
EREWASH BOROUGH COUNCIL,20578,EBC Balance Sheet             ,Payroll Coll Acc National Ins ,20-Feb-2023,HMRC CUMBERNAULD                        ,509.26,Feb-23
EREWASH BOROUGH COUNCIL,20580,EBC Balance Sheet             ,Payroll Coll Acc Student Loan ,20-Feb-2023,HMRC CUMBERNAULD                        ,"1,548.00",Feb-23
EREWASH BOROUGH COUNCIL,21065,EBC Balance Sheet             ,Derby City NNDR Pool Levy     ,22-Feb-2023,DERBY CITY COUNCIL                      ,"112,462.00",Feb-23
EREWASH BOROUGH COUNCIL,20954,EBC Balance Sheet             ,Cashiers Suspense             ,16-Feb-2023,ECO EXPRESS HIRE LTD,"7,000.00",Feb-23
EREWASH BOROUGH COUNCIL,21597,EBC Balance Sheet             ,Lloyds Credit Card Suspense   ,02-Feb-2023,LLOYDS BANK PLC                         ,"4,112.48",Feb-23
EREWASH BOROUGH COUNCIL,21597,EBC Balance Sheet             ,Lloyds Credit Card Suspense   ,02-Feb-2023,LLOYDS BANK PLC                         ,279.39,Feb-23
EREWASH BOROUGH COUNCIL,20758,EBC Balance Sheet             ,NNDR - Central Government     ,25-Jan-2023,"DEPT FOR LEVELLING UP,HOUSING&COMMUNITIE","3,331,675.00",Feb-23
EREWASH BOROUGH COUNCIL,21924,EBC Balance Sheet             ,NNDR Coll Fund Control Account,20-Feb-2023,"DEPT FOR LEVELLING UP,HOUSING&COMMUNITIE","859,667.00",Feb-23
EREWASH BOROUGH COUNCIL,20513,EBC Balance Sheet             ,AR Refunds Control Account    ,02-Feb-2023,WATTAN LTD T/A MR CHARGER NOTTINGHAM,378.33,Feb-23
EREWASH BOROUGH COUNCIL,20283,EBC Balance Sheet             ,Payroll Coll Acc Labour Party ,27-Jan-2023,EREWASH LABOUR GROUP                    ,521.85,Feb-23
EREWASH BOROUGH COUNCIL,20538,EBC Balance Sheet             ,Childcare Salary Sacrifice    ,03-Feb-2023,KIDDIVOUCHERS LTD                       ,568.00,Feb-23
EREWASH BOROUGH COUNCIL,20163,Human Resources and ICT       ,Software and Implementation   ,18-Jan-2023,AXESS SYSTEMS LTD                       ,"7,096.60",Feb-23
EREWASH BOROUGH COUNCIL,19962,Human Resources and ICT       ,Software and Implementation   ,13-Jan-2023,CCS MEDIA LIMITED                       ,934.50,Feb-23
EREWASH BOROUGH COUNCIL,20357,Human Resources and ICT       ,Vehicles                      ,27-Jan-2023,INSIGHT DIRECT (UK) LTD                 ,"1,527.49",Feb-23
EREWASH BOROUGH COUNCIL,18955,Planning                      ,Structural Property Works     ,07-Dec-2022,QUANTUM INTELLIGENT TRADING LTD         ,675.00,Feb-23
EREWASH BOROUGH COUNCIL,18956,Planning                      ,Structural Property Works     ,07-Dec-2022,QUANTUM INTELLIGENT TRADING LTD         ,765.00,Feb-23
EREWASH BOROUGH COUNCIL,20079,Planning                      ,Structural Property Works     ,13-Jan-2023,BAILY GARNER LLP                        ,561.00,Feb-23
EREWASH BOROUGH COUNCIL,20166,Planning                      ,Structural Property Works     ,23-Jan-2023,BAILY GARNER LLP                        ,"5,301.89",Feb-23
EREWASH BOROUGH COUNCIL,19773,Planning                      ,Structural Property Works     ,06-Jan-2023,CANAL & RIVER TRUST                     ,380.00,Feb-23
EREWASH BOROUGH COUNCIL,21085,Planning                      ,External Property Works       ,31-Oct-2022,THE LAND REFERENCING COMPANY LTD        ,356.00,Feb-23
EREWASH BOROUGH COUNCIL,20818,Planning                      ,External Property Works       ,16-Jan-2023,BROWNE JACOBSON                         ,"2,341.00",Feb-23
EREWASH BOROUGH COUNCIL,20817,Planning                      ,External Property Works       ,27-Jan-2023,BROWNE JACOBSON                         ,"2,604.80",Feb-23
EREWASH BOROUGH COUNCIL,20156,Planning                      ,External Property Works       ,20-Jan-2023,PROXIMITY FUTURES T/A ELEPHANT WIFI     ,"5,400.00",Feb-23
EREWASH BOROUGH COUNCIL,20315,Regulatory and Housing Service,Disabled Facilities Grant     ,21-Dec-2022,DERBYSHIRE COUNTY COUNCIL...            ,"3,385.00",Feb-23
EREWASH BOROUGH COUNCIL,20608,Regulatory and Housing Service,Disabled Facilities Grant     ,21-Dec-2022,DERBYSHIRE COUNTY COUNCIL...            ,"2,200.00",Feb-23
EREWASH BOROUGH COUNCIL,20611,Regulatory and Housing Service,Disabled Facilities Grant     ,18-Jan-2023,DERBYSHIRE COUNTY COUNCIL...            ,"6,063.00",Feb-23
EREWASH BOROUGH COUNCIL,20607,Regulatory and Housing Service,Disabled Facilities Grant     ,19-Jan-2023,DERBYSHIRE COUNTY COUNCIL...            ,"21,617.44",Feb-23
EREWASH BOROUGH COUNCIL,21074,Regulatory and Housing Service,Disabled Facilities Grant     ,01-Feb-2023,DERBYSHIRE COUNTY COUNCIL...            ,"2,361.00",Feb-23
EREWASH BOROUGH COUNCIL,21037,Regulatory and Housing Service,Disabled Facilities Grant     ,18-Jan-2023,DERBYSHIRE COUNTY COUNCIL...            ,"6,077.52",Feb-23
EREWASH BOROUGH COUNCIL,21073,Regulatory and Housing Service,Disabled Facilities Grant     ,02-Feb-2023,DERBYSHIRE COUNTY COUNCIL...            ,"6,625.00",Feb-23
EREWASH BOROUGH COUNCIL,19334,Regulatory and Housing Service,Disabled Facilities Grant     ,14-Nov-2022,DERBYSHIRE COUNTY COUNCIL...            ,"6,787.52",Feb-23
EREWASH BOROUGH COUNCIL,20594,,,06-Feb-2023,PENHAM EXCEL LIMITED                    ,311.25,Feb-23
